fUSD/lending_fUSD_20240913
["ID","MTS","AMOUNT","RATE_DAILY","PERIOD"]
[337903798,1726201845780,-1632.76,0.00013241,2]
[337903800,1726201845789,-500.0,0.00013242,2]
[337903802,1726201845798,-500.0,0.00013242,2]
[337903804,1726201845808,-500.0,0.00013242,2]
[337903806,1726201845817,-500.0,0.00013242,2]
[337903808,1726201845826,-569.26,0.00013242,2]
[337903810,1726201845836,-2101.36,0.00013242,2]
[337903812,1726201845847,-727.38,0.00013242,2]
[337903814,1726201845858,-3384.22,0.00013242,2]
[337903816,1726201845869,-500.0,0.00013242,2]
[337903818,1726201845880,-500.0,0.00013242,2]
[337903820,1726201845891,-500.0,0.00013242,2]
[337903822,1726201845902,-500.0,0.00013242,2]
[337903824,1726201845912,-3167.2,0.00013242,2]
[337903826,1726201845922,-1087.67,0.00013242,2]
[337903828,1726201845931,-675.48,0.00013242,2]
[337903830,1726201845940,-535.49,0.00013242,2]
[337903832,1726201845950,-822.47,0.00013242,2]
[337903834,1726201845959,-500.0,0.00013242,2]
[337903836,1726201845969,-847.79,0.00013242,2]
[337903838,1726201845978,-500.0,0.00013242,2]
[337903840,1726201845989,-500.0,0.00013242,2]
[337903842,1726201846000,-500.0,0.00013242,2]
[337903844,1726201846009,-547.81,0.00013242,2]
[337903846,1726201846019,-1237.63,0.00013242,2]
[337903848,1726201846029,-587.12,0.00013242,2]
[337903850,1726201846039,-500.0,0.00013242,2]
[337903852,1726201846049,-739.1,0.00013242,2]
[337903854,1726201846058,-730.29,0.00013242,2]
[337903856,1726201846067,-500.0,0.00013242,2]
[337903858,1726201846077,-1787.61,0.00013242,2]
[337903860,1726201846087,-845.82,0.00013242,2]
[337903862,1726201846096,-500.0,0.00013242,2]
[337903865,1726201846106,-2239.51,0.00013242,2]
[337903867,1726201846115,-500.0,0.00013242,2]
[337903869,1726201846124,-1152.46,0.00013242,2]
[337903871,1726201846134,-500.0,0.00013242,2]
[337903873,1726201846144,-500.0,0.00013242,2]
[337903875,1726201846154,-500.0,0.00013242,2]
[337903877,1726201846164,-1580.83,0.00013242,2]
[337903878,1726201846174,-500.0,0.00013242,2]
[337903881,1726201846183,-571.38,0.00013242,2]
[337903883,1726201846193,-1776.25,0.00013242,2]
[337903885,1726201846203,-593.17,0.00013242,2]
[337903886,1726201846212,-1571.8,0.00013242,2]
[337903888,1726201846222,-972.35,0.00013242,2]
[337903890,1726201846231,-1800.45,0.00013242,2]
[337903892,1726201846240,-500.0,0.00013242,2]
[337903894,1726201846251,-1145.5,0.00013242,2]
[337903897,1726201846261,-2950.76,0.00013242,2]
[337903898,1726201846272,-781.53,0.00013242,2]
[337903900,1726201846281,-500.0,0.00013242,2]
[337903902,1726201846291,-746.03,0.00013242,2]
[337903904,1726201846300,-1496.91,0.00013242,2]
[337903906,1726201846310,-500.0,0.00013242,2]
[337903908,1726201846319,-1181.3,0.00013242,2]
[337903910,1726201846330,-500.0,0.00013242,2]
[337903912,1726201846339,-500.0,0.00013242,2]
[337903914,1726201846350,-500.0,0.00013242,2]
[337903916,1726201846361,-500.0,0.00013242,2]
[337903918,1726201846371,-500.0,0.00013242,2]
[337903920,1726201846380,-2479.36,0.00013242,2]
[337903922,1726201846390,-500.0,0.00013242,2]
[337903924,1726201846400,-500.0,0.00013242,2]
[337903926,1726201846410,-500.0,0.00013242,2]
[337903928,1726201846419,-1976.39,0.00013242,2]
[337903930,1726201846429,-500.0,0.00013242,2]
[337903931,1726201846438,-599.19,0.00013242,2]
[337903933,1726201846447,-2667.3,0.00013242,2]
[337903935,1726201846457,-988.19,0.00013242,2]
[337903937,1726201846467,-500.0,0.00013242,2]
[337903939,1726201846478,-500.0,0.00013242,2]
[337903941,1726201846488,-543.63,0.00013242,2]
[337903943,1726201846498,-1229.61,0.00013242,2]
[337903946,1726201846508,-766.12,0.00013242,2]
[337903948,1726201846517,-3694.67,0.00013242,2]
[337903950,1726201846528,-500.0,0.00013242,2]
[337903952,1726201846537,-540.84,0.00013242,2]
[337903953,1726201846547,-500.0,0.00013242,2]
[337903955,1726201846556,-2959.42,0.00013242,2]
[337903957,1726201846566,-796.23,0.00013242,2]
[337903958,1726201846575,-500.0,0.00013242,2]
[337903960,1726201846585,-500.0,0.00013242,2]
[337903962,1726201846594,-3002.33,0.00013242,2]
[337903963,1726201846603,-500.0,0.00013242,2]
[337903965,1726201846612,-500.0,0.00013242,2]
[337903967,1726201846622,-500.0,0.00013242,2]
[337903969,1726201846632,-500.0,0.00013242,2]
[337903971,1726201846642,-500.0,0.00013242,2]
[337903973,1726201846652,-500.0,0.00013242,2]
[337903975,1726201846662,-899.19,0.00013242,2]
[337903977,1726201846671,-2898.11,0.00013242,2]
[337903979,1726201846682,-500.0,0.00013242,2]
[337903981,1726201846691,-500.0,0.00013242,2]
[337903982,1726201846701,-4180.03,0.00013242,2]
[337903984,1726201846710,-500.0,0.00013242,2]
[337903986,1726201846720,-500.0,0.00013242,2]
[337903988,1726201846731,-500.0,0.00013242,2]
[337903990,1726201846740,-4171.81,0.00013242,2]
[337903992,1726201846750,-694.52,0.00013242,2]
[337903994,1726201846759,-500.0,0.00013242,2]
[337903996,1726201846769,-1636.07,0.00013242,2]
[337903998,1726201846779,-500.0,0.00013242,2]
[337904000,1726201846788,-1969.17,0.00013242,2]
[337904002,1726201846797,-500.0,0.00013242,2]
[337904003,1726201846807,-649.0,0.00013242,2]
[337904005,1726201846816,-500.0,0.00013242,2]
[337904007,1726201846826,-1050.52,0.00013242,2]
[337904009,1726201846835,-931.91,0.00013242,2]
[337904010,1726201846845,-679.88,0.00013242,2]
[337904012,1726201846855,-500.0,0.00013242,2]
[337904014,1726201846865,-763.7,0.00013242,2]
[337904016,1726201846875,-1906.45,0.00013242,2]
[337904018,1726201846884,-500.0,0.00013242,2]
[337904020,1726201846893,-500.0,0.00013242,2]
[337904022,1726201846902,-500.0,0.00013242,2]
[337904024,1726201846912,-945.26,0.00013242,2]
[337904026,1726201846921,-859.04,0.00013242,2]
[337904028,1726201846930,-1968.25,0.00013242,2]
[337904030,1726201846939,-500.0,0.00013242,2]
[337904032,1726201846949,-585.9,0.00013242,2]
[337904034,1726201846958,-500.0,0.00013242,2]
[337904036,1726201846968,-500.0,0.00013242,2]
[337904038,1726201846978,-500.0,0.00013242,2]
[337904040,1726201846989,-588.82,0.00013242,2]
[337904042,1726201846998,-500.0,0.00013242,2]
[337904044,1726201847007,-500.0,0.00013242,2]
[337904046,1726201847016,-3139.16,0.00013242,2]
[337904048,1726201847026,-1323.19,0.00013242,2]
[337904050,1726201847036,-500.0,0.00013242,2]
[337904052,1726201847045,-500.0,0.00013242,2]
[337904054,1726201847054,-1219.85,0.00013242,2]
[337904056,1726201847064,-208.818998,0.00013242,2]
[337904057,1726201847073,-500.0,0.00013242,2]
[337904059,1726201847082,-500.0,0.00013242,2]
[337904061,1726201847091,-500.0,0.00013242,2]
[337904063,1726201847100,-1899.22,0.00013242,2]
[337904064,1726201847109,-500.0,0.00013242,2]
[337904065,1726201847118,-500.0,0.00013242,2]
[337904066,1726201847129,-1976.83,0.00013242,2]
[337904067,1726201847138,-500.0,0.00013242,2]
[337904068,1726201847147,-500.0,0.00013242,2]
[337904069,1726201847156,-500.0,0.00013242,2]
[337904070,1726201847166,-4264.21,0.00013242,2]
[337904071,1726201847175,-710.74,0.00013242,2]
[337904073,1726201847185,-1171.44,0.00013242,2]
[337904074,1726201847195,-2272.98,0.00013242,2]
[337904076,1726201847205,-500.0,0.00013242,2]
[337904078,1726201847215,-500.0,0.00013242,2]
[337904080,1726201847227,-500.0,0.00013242,2]
[337904082,1726201847236,-5172.11,0.00013242,2]
[337904084,1726201847246,-500.0,0.00013242,2]
[337904086,1726201847255,-500.0,0.00013242,2]
[337904088,1726201847266,-1747.11,0.00013242,2]
[337904090,1726201847277,-3198.43,0.00013242,2]
[337904092,1726201847286,-500.0,0.00013242,2]
[337904094,1726201847297,-500.0,0.00013242,2]
[337904096,1726201847307,-1461.24,0.00013242,2]
[337904098,1726201847317,-500.0,0.00013242,2]
[337904100,1726201847327,-500.0,0.00013242,2]
[337904102,1726201847335,-3246.1,0.00013242,2]
[337904104,1726201847346,-500.0,0.00013242,2]
[337904106,1726201847357,-500.0,0.00013242,2]
[337904108,1726201847366,-500.0,0.00013242,2]
[337904110,1726201847376,-579.61,0.00013242,2]
[337904112,1726201847385,-586.96,0.00013242,2]
[337904114,1726201847394,-500.0,0.00013242,2]
[337904116,1726201847403,-555.0,0.00013242,2]
[337904118,1726201847412,-2947.18,0.00013242,2]
[337904120,1726201847421,-500.0,0.00013242,2]
[337904122,1726201847431,-500.0,0.00013242,2]
[337904124,1726201847440,-500.0,0.00013242,2]
[337904126,1726201847449,-188.56127097,0.00013242,2]
[337904170,1726201847893,-2607.20000779,0.00013242,2]
[337904357,1726201849803,-1146.0,0.00012985,2]
[337904358,1726201849812,-1822.80872124,0.00013242,2]
[337904360,1726201849821,-3544.88,0.00013242,2]
[337904362,1726201849830,-500.0,0.00013242,2]
[337904364,1726201849840,-500.0,0.00013242,2]
[337904366,1726201849849,-2077.98,0.00013242,2]
[337904368,1726201849858,-500.0,0.00013242,2]
[337904370,1726201849868,-500.0,0.00013242,2]
[337904372,1726201849877,-742.67,0.00013242,2]
[337904374,1726201849886,-1320.79,0.00013242,2]
[337904376,1726201849895,-615.47353259,0.00013242,2]
[337904378,1726201849904,-2505.88,0.00013242,2]
[337904380,1726201849913,-500.0,0.00013242,2]
[337904381,1726201849923,-1951.35962203,0.00013242,2]
[337904390,1726201850000,-218.58037797,0.00013242,2]
[337904392,1726201850010,-4271.41,0.00013242,2]
[337904394,1726201850019,-500.0,0.00013242,2]
[337904396,1726201850029,-3736.27,0.00013242,2]
[337904398,1726201850040,-500.0,0.00013242,2]
[337904400,1726201850049,-500.0,0.00013242,2]
[337904402,1726201850058,-500.0,0.00013242,2]
[337904404,1726201850067,-2632.66,0.00013242,2]
[337904406,1726201850076,-500.0,0.00013242,2]
[337904408,1726201850086,-4184.45,0.00013242,2]
[337904410,1726201850095,-1169.63,0.00013242,2]
[337904411,1726201850103,-500.0,0.00013242,2]
[337904413,1726201850112,-2075.05,0.00013242,2]
[337904415,1726201850122,-500.0,0.00013242,2]
[337904417,1726201850132,-2133.53,0.00013242,2]
[337904419,1726201850141,-500.0,0.00013242,2]
[337904421,1726201850150,-2351.11,0.00013242,2]
[337904423,1726201850159,-582.88,0.00013242,2]
[337904424,1726201850168,-3064.64,0.00013242,2]
[337904426,1726201850177,-500.0,0.00013242,2]
[337904428,1726201850188,-5080.18,0.00013242,2]
[337904430,1726201850197,-500.0,0.00013242,2]
[337904432,1726201850207,-500.0,0.00013242,2]
[337904434,1726201850216,-1606.69,0.00013242,2]
[337904436,1726201850226,-500.0,0.00013242,2]
[337904438,1726201850235,-1892.44,0.00013242,2]
[337904440,1726201850246,-500.0,0.00013242,2]
[337904442,1726201850255,-500.0,0.00013242,2]
[337904444,1726201850264,-1708.4,0.00013242,2]
[337904445,1726201850274,-1981.86,0.00013242,2]
[337904447,1726201850284,-8132.72,0.00013242,2]
[337904449,1726201850294,-3644.59,0.00013242,2]
[337904451,1726201850303,-500.0,0.00013242,2]
[337904453,1726201850313,-4278.71,0.00013242,2]
[337904455,1726201850323,-500.0,0.00013242,2]
[337904457,1726201850333,-571.71,0.00013242,2]
[337904459,1726201850342,-6616.42,0.00013242,2]
[337904461,1726201850351,-2485.38,0.00013242,2]
[337904463,1726201850360,-500.0,0.00013242,2]
[337904465,1726201850370,-3445.77,0.00013242,2]
[337904467,1726201850379,-501.72,0.00013242,2]
[337904469,1726201850388,-195.09457634,0.00013242,2]
[337904470,1726201850397,-5047.62,0.00013242,2]
[337904472,1726201850407,-500.0,0.00013242,2]
[337904474,1726201850416,-1500.36,0.00013242,2]
[337904476,1726201850426,-1423.85,0.00013242,2]
[337904478,1726201850435,-1364.1,0.00013242,2]
[337904480,1726201850445,-1095.13,0.00013242,2]
[337904482,1726201850455,-4900.76,0.00013242,2]
[337904484,1726201850465,-10818.61601569,0.00013242,2]
[337906090,1726201918214,276.91,0.00010365,2]
[337906091,1726201998177,200.0,0.00012135,2]
[337906102,1726202067227,-300.93,0.00012248,2]
[337906103,1726202080431,-250.0,0.0001232,2]
[337906104,1726202084694,-300.0,0.00012428,2]
[337906105,1726202084717,-22457.1163,0.00012429,2]
[337906106,1726202127510,250.0,0.00012159,2]
[337906108,1726202293223,188.15,0.00012114,2]
[337906109,1726202333902,737.6,0.00012114,2]
[337906110,1726202347138,250.0,0.00012132,2]
[337906117,1726202395652,13353.76,0.00012146,2]
[337906118,1726202434129,334.13,0.00010222,2]
[337906119,1726202469901,305.68,0.00012114,2]
[337906120,1726202490659,520.81,0.00012106,2]
[337906126,1726202706612,160.00877761,0.0001191,2]
[337906127,1726202714926,154.24331686,0.0001191,2]
[337906128,1726202716755,150.0,0.0001191,2]
[337906129,1726202861186,409.92,0.00012069,2]
[337906130,1726202893862,1050.0,0.00011,2]
[337906131,1726202909102,156.07,0.00010959,2]
[337906146,1726203000999,250.0,0.00012034,2]
[337906149,1726203032704,260.4,0.00012044,2]
[337906150,1726203035042,748.27,0.00012044,2]
[337906153,1726203037545,-262.3056,0.00012329,2]
[337906154,1726203037555,-334.13,0.00012486,2]
[337906155,1726203037564,-300.0,0.00012864,2]
[337906156,1726203037573,-168.46982081,0.00012865,2]
[337906157,1726203037583,-339.36122781,0.00012865,2]
[337906158,1726203037592,-162.14826699,0.00012867,2]
[337906159,1726203037602,-222.4573,0.00012867,2]
[337906160,1726203037611,-4187.3518,0.00012867,2]
[337906161,1726203037620,-201.6792,0.00012867,2]
[337906162,1726203037630,-177.32746702,0.00012868,2]
[337906163,1726203037639,-150.35374544,0.00012868,2]
[337906164,1726203037648,-150.0,0.00012899,2]
[337906165,1726203037658,-1006.0,0.000129,2]
[337906166,1726203037669,-1000.0,0.000129,2]
[337906167,1726203037678,-1000.0,0.000129,3]
[337906168,1726203037687,-947.93996017,0.000129,2]
[337906169,1726203037703,-54.06003983,0.000129,2]
[337906170,1726203037712,-6309.42137716,0.00012954,2]
[337906171,1726203037721,-500.0,0.00012964,2]
[337906172,1726203037731,-666.76,0.00012964,2]
[337906173,1726203037740,-521.82,0.00012964,2]
[337906174,1726203037749,-500.0,0.00012964,2]
[337906175,1726203037759,-500.0,0.00012964,2]
[337906176,1726203037769,-500.0,0.00012964,2]
[337906177,1726203037778,-619.19,0.00012964,2]
[337906178,1726203037788,-500.0,0.00012964,2]
[337906179,1726203037797,-997.03,0.00012964,2]
[337906180,1726203037807,-500.0,0.00012964,2]
[337906181,1726203037816,-500.0,0.00012964,2]
[337906182,1726203037825,-777.14,0.00012964,2]
[337906183,1726203037834,-753.93,0.00012964,2]
[337906184,1726203037843,-1926.25,0.00012964,2]
[337906186,1726203037852,-502.16,0.00012964,2]
[337906188,1726203037861,-500.0,0.00012964,2]
[337906190,1726203037870,-500.0,0.00012964,2]
[337906219,1726203038142,-500.0,0.00012964,2]
[337906221,1726203038153,-500.0,0.00012964,2]
[337906223,1726203038162,-500.0,0.00012964,2]
[337906224,1726203038171,-1134.49,0.00012964,2]
[337906226,1726203038181,-677.51,0.00012964,2]
[337906228,1726203038190,-2903.27,0.00012964,2]
[337906230,1726203038199,-745.42,0.00012964,2]
[337906232,1726203038209,-669.44,0.00012964,2]
[337906234,1726203038218,-500.0,0.00012964,2]
[337906236,1726203038227,-3479.69,0.00012964,2]
[337906237,1726203038236,-500.0,0.00012964,2]
[337906239,1726203038245,-1800.92,0.00012964,2]
[337906241,1726203038255,-500.0,0.00012964,2]
[337906243,1726203038264,-4193.01,0.00012964,2]
[337906245,1726203038273,-952.34,0.00012964,2]
[337906247,1726203038283,-1638.64,0.00012964,2]
[337906249,1726203038292,-1588.5,0.00012964,2]
[337906251,1726203038301,-4825.04,0.00012964,2]
[337906252,1726203038311,-500.0,0.00012964,2]
[337906254,1726203038320,-1056.42,0.00012964,2]
[337906256,1726203038329,-500.0,0.00012964,2]
[337906258,1726203038338,-500.0,0.00012964,2]
[337906260,1726203038347,-4008.67,0.00012964,2]
[337906261,1726203038355,-2052.88,0.00012964,2]
[337906263,1726203038365,-500.0,0.00012964,2]
[337906265,1726203038374,-500.0,0.00012964,2]
[337906267,1726203038383,-3328.24,0.00012964,2]
[337906269,1726203038393,-3184.49,0.00012964,2]
[337906271,1726203038402,-1449.09,0.00012964,2]
[337906273,1726203038411,-12889.66,0.00012964,2]
[337906275,1726203038423,-233.60850238,0.00012964,2]
[337906277,1726203038433,-5463.4,0.00012964,2]
[337906279,1726203038442,-3773.91,0.00012964,2]
[337906280,1726203038454,-4881.74,0.00012964,2]
[337906282,1726203038463,-500.0,0.00012964,2]
[337906284,1726203038472,-3174.39,0.00012964,2]
[337906286,1726203038481,-1866.2,0.00012964,2]
[337906288,1726203038492,-1894.68,0.00012964,2]
[337906290,1726203038503,-2200.22,0.00012964,2]
[337906292,1726203038513,-1042.04,0.00012964,2]
[337906294,1726203038524,-1798.72,0.00012964,2]
[337906296,1726203038534,-1461.3,0.00012964,2]
[337906298,1726203038543,-1343.98,0.00012964,2]
[337906300,1726203038552,-543.73,0.00012964,2]
[337906302,1726203038563,-901.56,0.00012964,2]
[337906304,1726203038573,-691.07,0.00012964,2]
[337906306,1726203038583,-6029.74,0.00012964,2]
[337906308,1726203038592,-500.0,0.00012964,2]
[337906310,1726203038602,-61365.92,0.00012964,2]
[337906312,1726203038612,-891.32,0.00012964,2]
[337906314,1726203038623,-500.0,0.00012964,2]
[337906317,1726203038633,-9748.25,0.00012964,2]
[337906319,1726203038643,-500.0,0.00012964,2]
[337906321,1726203038653,-182.673,0.00012965,2]
[337906323,1726203038662,-1440.81,0.00012965,2]
[337906325,1726203038671,-2833.17,0.00012965,2]
[337906327,1726203038681,-500.0,0.00012965,2]
[337906329,1726203038691,-169.04849082,0.00012965,2]
[337906331,1726203038700,-500.0,0.00012965,2]
[337906333,1726203038709,-500.0,0.00012965,2]
[337906335,1726203038720,-500.0,0.00012965,2]
[337906337,1726203038731,-1811.69,0.00012965,2]
[337906339,1726203038741,-500.0,0.00012965,2]
[337906341,1726203038750,-1372.17,0.00012965,2]
[337906343,1726203038759,-500.0,0.00012965,2]
[337906345,1726203038769,-500.0,0.00012965,2]
[337906347,1726203038779,-500.0,0.00012965,2]
[337906349,1726203038788,-1127.14,0.00012965,2]
[337906351,1726203038798,-500.0,0.00012965,2]
[337906353,1726203038807,-3512.43,0.00012965,2]
[337906355,1726203038817,-372.23023917,0.00012965,2]
[337906357,1726203038827,-500.0,0.00012965,2]
[337906359,1726203038837,-729.88,0.00012965,2]
[337906360,1726203038846,-905.84,0.00012965,2]
[337906362,1726203038856,-500.0,0.00012965,2]
[337906364,1726203038865,-500.0,0.00012965,2]
[337906366,1726203038875,-3386.78,0.00012965,2]
[337906368,1726203038884,-500.0,0.00012965,2]
[337906371,1726203038894,-500.0,0.00012965,2]
[337906373,1726203038904,-624.90026706,0.00012965,2]
[337906375,1726203038913,-3831.7,0.00012965,2]
[337906377,1726203038924,-500.0,0.00012965,2]
[337906379,1726203038934,-500.0,0.00012965,2]
[337906381,1726203038943,-2752.14,0.00012965,2]
[337906383,1726203038952,-3790.23,0.00012965,2]
[337906385,1726203038962,-500.0,0.00012965,2]
[337906387,1726203038971,-824.26,0.00012965,2]
[337906389,1726203038980,-500.0,0.00012965,2]
[337906390,1726203038989,-962.98,0.00012965,2]
[337906392,1726203038999,-500.0,0.00012965,2]
[337906394,1726203039008,-3824.16,0.00012965,2]
[337906396,1726203039018,-500.0,0.00012965,2]
[337906398,1726203039027,-500.0,0.00012965,2]
[337906400,1726203039036,-500.0,0.00012965,2]
[337906402,1726203039045,-1052.95,0.00012965,2]
[337906404,1726203039055,-787.45,0.00012965,2]
[337906406,1726203039064,-500.0,0.00012965,2]
[337906408,1726203039073,-500.0,0.00012965,2]
[337906410,1726203039082,-700.05,0.00012965,2]
[337906412,1726203039091,-500.2398129,0.00012965,2]
[337906414,1726203039100,-2877.56,0.00012965,2]
[337906416,1726203039109,-500.0,0.00012965,2]
[337906418,1726203039119,-500.0,0.00012965,2]
[337906420,1726203039128,-500.0,0.00012965,2]
[337906422,1726203039136,-500.0,0.00012965,2]
[337906424,1726203039145,-834.17,0.00012965,2]
[337906426,1726203039154,-500.0,0.00012965,2]
[337906428,1726203039164,-593.72383644,0.00012965,2]
[337906430,1726203039173,-1118.2,0.00012965,2]
[337906432,1726203039182,-430.50540028,0.00012965,2]
[337906434,1726203039192,-500.0,0.00012965,2]
[337906436,1726203039201,-500.0,0.00012965,2]
[337906438,1726203039210,-1740.96,0.00012965,2]
[337906440,1726203039219,-500.0,0.00012965,2]
[337906442,1726203039229,-500.0,0.00012965,2]
[337906444,1726203039238,-500.0,0.00012965,2]
[337906446,1726203039247,-500.0,0.00012965,2]
[337906447,1726203039256,-2083.57,0.00012965,2]
[337906449,1726203039265,-500.0,0.00012965,2]
[337906454,1726203039275,-2173.0,0.00012965,2]
[337906456,1726203039284,-500.0,0.00012965,2]
[337906457,1726203039293,-538.04,0.00012965,2]
[337906459,1726203039302,-500.0,0.00012965,2]
[337906461,1726203039311,-2931.89,0.00012965,2]
[337906463,1726203039320,-500.0,0.00012965,2]
[337906465,1726203039329,-500.0,0.00012965,2]
[337906467,1726203039338,-1339.47,0.00012965,2]
[337906469,1726203039348,-500.0,0.00012965,2]
[337906471,1726203039358,-4233.69,0.00012965,2]
[337906473,1726203039367,-500.0,0.00012965,2]
[337906475,1726203039377,-2975.59,0.00012965,2]
[337906477,1726203039386,-500.0,0.00012965,2]
[337906479,1726203039395,-531.31,0.00012965,2]
[337906480,1726203039405,-500.0,0.00012965,2]
[337906482,1726203039415,-2701.58,0.00012965,2]
[337906485,1726203039424,-500.0,0.00012965,2]
[337906486,1726203039434,-500.0,0.00012965,2]
[337906489,1726203039445,-3249.48,0.00012965,2]
[337906490,1726203039455,-500.0,0.00012965,2]
[337906492,1726203039464,-1818.5,0.00012965,2]
[337906494,1726203039473,-500.0,0.00012965,2]
[337906496,1726203039482,-1904.81,0.00012965,2]
[337906498,1726203039492,-500.0,0.00012965,2]
[337906500,1726203039502,-3915.46,0.00012965,2]
[337906502,1726203039511,-500.0,0.00012965,2]
[337906504,1726203039521,-500.0,0.00012965,2]
[337906506,1726203039531,-500.0,0.00012965,2]
[337906508,1726203039540,-500.0,0.00012965,2]
[337906510,1726203039549,-3835.74,0.00012965,2]
[337906512,1726203039558,-500.0,0.00012965,2]
[337906514,1726203039567,-1210.72,0.00012965,2]
[337906516,1726203039576,-500.0,0.00012965,2]
[337906518,1726203039586,-1902.13,0.00012965,2]
[337906520,1726203039594,-500.0,0.00012965,2]
[337906522,1726203039604,-1160.32,0.00012965,2]
[337906524,1726203039613,-500.0,0.00012965,2]
[337906525,1726203039622,-2155.19,0.00012965,2]
[337906527,1726203039631,-4656.83,0.00012965,2]
[337906529,1726203039640,-3424.92,0.00012965,2]
[337906531,1726203039650,-1698.87,0.00012965,2]
[337906533,1726203039659,-1496.7,0.00012965,2]
[337906535,1726203039668,-1734.74,0.00012965,2]
[337906537,1726203039677,-2413.27,0.00012965,2]
[337906539,1726203039686,-1566.03,0.00012965,2]
[337906541,1726203039695,-1072.16,0.00012965,2]
[337906543,1726203039706,-500.0,0.00012965,2]
[337906545,1726203039715,-8852.36,0.00012965,2]
[337906547,1726203039724,-500.0,0.00012965,2]
[337906549,1726203039734,-524.07,0.00012965,2]
[337906551,1726203039743,-1955.74,0.00012965,2]
[337906553,1726203039753,-2278.26,0.00012965,2]
[337906555,1726203039762,-9257.48,0.00012965,2]
[337906557,1726203039771,-500.0,0.00012965,2]
[337906559,1726203039780,-2809.26,0.00012965,2]
[337906561,1726203039789,-2047.96,0.00012965,2]
[337906563,1726203039799,-2455.59,0.00012965,2]
[337906565,1726203039807,-500.0,0.00012965,2]
[337906567,1726203039816,-1472.8,0.00012965,2]
[337906568,1726203039826,-1305.2,0.00012965,2]
[337906570,1726203039834,-898.41,0.00012965,2]
[337906572,1726203039843,-3158.62,0.00012965,2]
[337906574,1726203039853,-1203.06,0.00012965,2]
[337906576,1726203039862,-3887.82,0.00012965,2]
[337906578,1726203039871,-3690.21,0.00012965,2]
[337906580,1726203039880,-3507.81,0.00012965,2]
[337906582,1726203039889,-2827.82,0.00012965,2]
[337906584,1726203039898,-1003.87,0.00012965,2]
[337906586,1726203039907,-880.09,0.00012965,2]
[337906588,1726203039916,-5971.2,0.00012965,2]
[337906590,1726203039925,-1449.81,0.00012965,2]
[337906592,1726203039935,-500.0,0.00012965,2]
[337906594,1726203039944,-3340.87,0.00012965,2]
[337906596,1726203039953,-2976.55,0.00012965,2]
[337906598,1726203039963,-500.0,0.00012965,2]
[337906600,1726203039972,-6412.47,0.00012965,2]
[337906602,1726203039981,-1730.87,0.00012965,2]
[337906604,1726203039990,-5432.26,0.00012965,2]
[337906605,1726203039999,-500.0,0.00012965,2]
[337906607,1726203040008,-6333.56,0.00012965,2]
[337906609,1726203040017,-3517.68,0.00012965,2]
[337906611,1726203040026,-1860.19,0.00012965,2]
[337906613,1726203040035,-5346.62,0.00012965,2]
[337906614,1726203040044,-4626.98,0.00012965,2]
[337906616,1726203040053,-13160.68,0.00012965,2]